bitfinex/quotes_BTCUSD_20240901
["timestamp","ask_amount","ask_price","bid_price","bid_amount"]
[1725169268991,0.516448,58089.0,58088.0,0.07674622]
[1725169269214,0.172149,58089.0,58088.0,0.10224408]
[1725169269433,0.516448,58089.0,58088.0,0.10224408]
[1725169269663,0.860747,58089.0,58088.0,0.10224408]
[1725169270123,0.860747,58089.0,58085.0,0.10224408]
[1725169270124,0.2657,58087.0,58085.0,0.10224408]
[1725169270367,0.2657,58087.0,58083.0,0.05124619]
[1725169270368,0.688644,58085.0,58083.0,0.05124619]
[1725169270631,0.1995,58086.0,58081.0,0.05124619]
[1725169270632,1.06035,58082.0,58081.0,0.05124619]
[1725169270864,1.06035,58082.0,58079.0,0.05124619]
[1725169270865,0.1995,58080.0,58079.0,0.05124619]
[1725169271112,0.516537,58079.0,58078.0,0.05124619]
[1725169271361,0.1995,58080.0,58076.0,0.12826805]
[1725169271593,0.172182,58078.0,58077.0,0.10261444]
[1725169271823,1.205274,58078.0,58077.0,0.10261444]
[1725169272045,0.860925,58077.0,58076.0,0.10261444]
[1725169272276,1.205295,58077.0,58076.0,0.12826805]
[1725169272969,0.1995,58080.0,58070.0,0.15326458]
[1725169273210,0.00430479,58079.0,58074.0,0.172193]
[1725169273429,0.17648479,58079.0,58075.0,0.15326458]
[1725169273654,0.00430479,58079.0,58076.0,0.172187]
[1725169273871,0.00430479,58079.0,58078.0,0.15326458]
[1725169274090,0.172174,58081.0,58078.0,0.15326458]
[1725169274315,0.172174,58081.0,58071.0,0.344405]
[1725169274316,0.00430465,58080.0,58076.0,0.15326458]
[1725169274739,0.00430465,58080.0,58076.0,0.172187]
[1725169274953,0.172168,58083.0,58077.0,0.32638391]
[1725169275185,0.17447248,58083.0,58078.0,0.172179]
[1725169275656,0.00430448,58083.0,58079.0,0.172179]
[1725169275890,0.172175,58081.0,58076.0,0.15420091]
[1725169276340,0.172175,58081.0,58080.0,0.1285318]
[1725169276574,0.172172,58082.0,58080.0,0.10283629]
[1725169276790,0.00430444,58081.0,58079.0,0.1285318]
[1725169277058,0.00430448,58082.0,58079.0,0.14138498]
[1725169277277,0.172174,58081.0,58079.0,0.11569536]
[1725169277736,0.172176,58080.0,58079.0,0.11569536]
[1725169278176,0.2657,58080.0,58078.0,0.07714395]
[1725169278453,0.516555,58077.0,58076.0,0.07715338]
[1725169278683,0.172188,58076.0,58075.0,0.07715323]
[1725169278897,0.516564,58076.0,58075.0,0.07715323]
[1725169279127,0.516564,58076.0,58074.0,0.07715323]
[1725169279128,0.516573,58075.0,58074.0,0.07715323]
[1725169279335,0.860955,58075.0,58074.0,0.05144417]
[1725169279579,0.516582,58074.0,58073.0,0.05144417]
[1725169279800,0.516582,58074.0,58069.0,0.05144417]
[1725169279801,0.344388,58074.0,58069.0,0.05144417]
[1725169280024,0.172208,58069.0,58068.0,0.05144417]
[1725169280246,0.344411,58070.0,58067.0,0.05145978]
[1725169280247,0.516617,58070.0,58067.0,0.05145978]
[1725169280468,0.172171,58082.0,58073.0,0.344388]
[1725169280683,0.1995,58083.0,58076.0,0.172186]
[1725169280684,0.172175,58081.0,58076.0,0.172186]
[1725169280904,0.1995,58083.0,58076.0,0.05145819]
[1725169280905,0.00430476,58082.0,58076.0,0.05145819]
[1725169281131,0.00430476,58082.0,58077.0,0.05145819]
[1725169281132,0.17647676,58082.0,58077.0,0.05145819]
[1725169281342,0.17647676,58082.0,58077.0,0.172184]
[1725169281555,0.172173,58081.0,58077.0,0.172184]
[1725169282036,0.172173,58081.0,58075.0,0.05145819]
[1725169282259,0.172173,58081.0,58076.0,0.172186]
[1725169282694,0.1995,58083.0,58076.0,0.344373]
[1725169282928,0.172166,58084.0,58079.0,0.172178]
[1725169283143,0.00430448,58083.0,58076.0,0.344373]
[1725169283385,0.17647148,58083.0,58076.0,0.3452717]
[1725169283620,0.17647148,58083.0,58077.0,0.344369]
[1725169283848,0.17728848,58083.0,58078.0,0.17218]
[1725169284060,0.00430449,58082.0,58078.0,0.17218]
[1725169284301,0.172985,58083.0,58078.0,0.17218]
[1725169284528,0.00430449,58082.0,58078.0,0.17218]
[1725169284756,0.17647549,58082.0,58078.0,0.17218]
[1725169284980,0.17647549,58082.0,58077.0,0.344367]
[1725169284981,0.00430449,58082.0,58077.0,0.344367]
[1725169285217,0.000817,58083.0,58082.0,0.17217]
[1725169285682,0.000817,58083.0,58078.0,0.34436]
[1725169285963,0.000817,58083.0,58082.0,0.17217]
[1725169286205,0.000817,58083.0,58082.0,0.51651]
[1725169286431,0.000817,58083.0,58082.0,0.17217]
[1725169286685,0.000817,58083.0,58076.0,0.0008987]
[1725169286686,0.000817,58083.0,58076.0,0.05236771]
[1725169286912,0.172174,58081.0,58076.0,0.1730857]
[1725169287137,0.172177,58080.0,58076.0,0.0008987]
[1725169287358,0.00430475,58079.0,58076.0,0.0008987]
[1725169287593,0.172185,58077.0,58076.0,0.0008987]
[1725169287830,0.17648375,58079.0,58076.0,0.0008987]
[1725169288054,0.00430475,58079.0,58076.0,0.1730857]
[1725169288293,0.0043047,58080.0,58076.0,0.0008987]
[1725169288789,0.0043047,58080.0,58076.0,0.1730847]
[1725169289025,0.000817,58083.0,58082.0,0.17217]
[1725169289256,0.000817,58083.0,58082.0,0.51651]
[1725169289482,0.000817,58083.0,58082.0,0.17217]
[1725169289726,0.000817,58083.0,58082.0,0.51651]
[1725169290426,0.000817,58083.0,58082.0,0.86085]
[1725169290654,0.000817,58083.0,58082.0,1.12655]
[1725169290884,0.000817,58083.0,58082.0,1.47089]
[1725169292054,0.000817,58083.0,58082.0,1.54535946]
[1725169292308,0.000817,58083.0,58082.0,1.69381913]
[1725169292533,0.000817,58083.0,58082.0,1.77097509]
[1725169292767,0.000817,58083.0,58082.0,1.69381913]
[1725169292989,0.000817,58083.0,58082.0,1.77097523]
[1725169293209,0.000817,58083.0,58082.0,1.80381913]
[1725169293440,0.000817,58083.0,58082.0,1.90675805]
[1725169293885,0.000817,58083.0,58082.0,2.25109805]
[1725169294389,0.000817,58083.0,58082.0,2.2252763]
[1725169294627,0.000817,58083.0,58082.0,2.14815913]
[1725169294867,0.0022,58088.0,58087.0,0.179155]
[1725169295103,0.0022,58088.0,58087.0,2.3744798]
[1725169295337,0.0022,58088.0,58087.0,2.32307025]
[1725169295819,0.0004,58099.0,58098.0,0.172122]
[1725169296050,0.0004,58099.0,58098.0,0.516367]
[1725169298338,0.0004,58099.0,58095.0,0.19992913]
[1725169298596,0.17252,58099.0,58095.0,0.17213]
[1725169298805,0.17252,58099.0,58090.0,0.54421813]
[1725169298806,0.1815,58098.0,58090.0,0.172145]
[1725169299040,0.172132,58095.0,58090.0,0.172145]
[1725169299251,0.172132,58095.0,58088.0,0.344302]
[1725169299252,0.172138,58093.0,58088.0,0.172151]
[1725169299718,0.172141,58092.0,58088.0,0.172151]
[1725169300855,0.172144,58091.0,58086.0,0.172158]
[1725169301079,0.1815,58098.0,58091.0,0.172143]
[1725169301080,0.172129,58096.0,58091.0,0.172143]
[1725169301299,0.172135,58094.0,58090.0,0.19992913]
[1725169301544,0.00430348,58096.0,58090.0,0.19992913]
[1725169301762,0.172135,58094.0,58090.0,0.19992913]
[1725169303235,0.172135,58094.0,58082.0,0.2587]
[1725169303236,0.172158,58086.0,58085.0,0.19992913]
[1725169303459,0.3443,58089.0,58082.0,0.172169]
[1725169303665,0.172155,58087.0,58082.0,0.172169]
[1725169304096,0.172155,58087.0,58071.0,0.015]
[1725169304097,0.172184,58078.0,58076.0,0.0008987]
[1725169304311,0.172185,58077.0,58076.0,0.0008987]
[1725169304518,0.1815,58085.0,58076.0,0.0008987]
[1725169304640,0.172184,58078.0,58076.0,0.0008987]
[1725169304845,0.00430438,58084.0,58076.0,0.0008987]
[1725169305092,0.00430438,58084.0,58078.0,0.172181]
[1725169305296,0.00430438,58084.0,58076.0,0.0008987]
[1725169305297,0.1815,58092.0,58081.0,0.2587]
[1725169305566,0.1815,58098.0,58091.0,0.19992913]
[1725169305750,0.1815,58098.0,58094.0,0.172133]
[1725169305970,0.1815,58098.0,58092.0,0.344277]
[1725169305971,0.1815,58098.0,58095.0,0.172129]
[1725169306261,0.623312,58104.0,58097.0,0.172123]
[1725169306490,0.623312,58104.0,58089.0,0.344296]
[1725169306491,0.1956,58104.0,58098.0,0.344245]
[1725169306701,0.172108,58103.0,58098.0,0.172122]
[1725169307130,0.172111,58102.0,58098.0,0.172122]
[1725169307552,0.1956,58104.0,58098.0,0.172122]
[1725169307762,0.172109,58103.0,58098.0,0.172122]
[1725169309455,0.367705,58104.0,58098.0,0.172122]
[1725169309878,0.172108,58103.0,58098.0,0.172122]
[1725169310293,0.1956,58104.0,58098.0,0.516367]
[1725169310511,0.172111,58102.0,58098.0,0.172122]
[1725169310728,0.00430311,58101.0,58089.0,0.172147]
[1725169310948,0.172132,58095.0,58090.0,0.172146]
[1725169311154,0.172132,58095.0,58091.0,0.172142]
[1725169311796,0.44107548,58097.0,58091.0,0.172142]
[1725169312009,0.344235,58100.0,58091.0,0.172142]
[1725169312224,0.172129,58096.0,58091.0,0.172142]
[1725169312439,0.00470321,58099.0,58089.0,0.344297]
[1725169312440,0.0004,58099.0,58089.0,0.344297]
[1725169312666,0.17252,58099.0,58093.0,0.172135]
[1725169313120,0.0004,58099.0,58094.0,0.172133]
[1725169313329,0.0004,58099.0,58092.0,0.172139]
[1725169313548,0.172126,58097.0,58092.0,0.172139]
[1725169314407,0.4665,58095.0,58086.0,0.19992913]
[1725169314613,0.172142,58092.0,58087.0,0.172154]
[1725169314835,0.344271,58094.0,58085.0,0.39577992]
[1725169314836,0.172136,58094.0,58088.0,0.17215]
[1725169315040,0.172136,58094.0,58089.0,0.172149]
[1725169316137,0.0004,58099.0,58094.0,0.172133]
[1725169316386,0.172128,58097.0,58092.0,0.172139]
[1725169316579,0.17133121,58097.0,58092.0,0.172139]
[1725169317644,0.17133121,58097.0,58093.0,0.172137]
[1725169317774,0.0004,58099.0,58093.0,0.172137]
[1725169317993,0.0004,58099.0,58098.0,0.172122]
[1725169318192,0.0004,58099.0,58098.0,0.516367]
[1725169318391,0.0004,58099.0,58098.0,0.860612]
[1725169320299,0.0004,58099.0,58098.0,1.124212]
[1725169320530,0.0004,58099.0,58098.0,1.468457]
[1725169321003,0.0004,58099.0,58098.0,1.596457]
[1725169321488,0.0004,58099.0,58098.0,2.148102]
[1725169322400,0.0004,58099.0,58098.0,2.150102]
[1725169322647,0.50540786,58124.0,58108.0,0.005]
[1725169322878,0.352221,58135.0,58134.0,0.516048]
[1725169322879,0.00819,58135.0,58134.0,0.516048]
[1725169323118,0.00858,58139.0,58138.0,0.172004]
[1725169323573,0.00858,58139.0,58134.0,0.172014]
[1725169323818,0.00858,58139.0,58132.0,0.344044]
[1725169324045,0.00858,58139.0,58133.0,0.344036]
[1725169324272,0.00858,58139.0,58136.0,0.172008]
[1725169324545,0.00858,58139.0,58138.0,0.172004]
[1725169324787,0.00858,58139.0,58138.0,1.123622]
[1725169325262,0.00858,58139.0,58138.0,1.665031]
[1725169325755,0.00858,58139.0,58138.0,1.770031]
[1725169325992,0.00817,58144.0,58138.0,1.770031]
[1725169325993,0.00817,58144.0,58143.0,1.67245513]
[1725169326224,0.00817,58144.0,58143.0,1.77245513]
[1725169326690,0.00817,58144.0,58143.0,1.42347613]
[1725169327835,0.00817,58144.0,58143.0,1.07949713]
[1725169328059,0.00817,58144.0,58143.0,1.42347613]
[1725169329210,0.00817,58144.0,58143.0,1.42847613]
[1725169329463,0.00817,58144.0,58143.0,1.43847613]
[1725169329681,0.00817,58144.0,58143.0,1.78245513]
[1725169330144,0.00817,58144.0,58143.0,1.605526]
[1725169331964,0.00817,58144.0,58143.0,1.228547]
[1725169332971,0.00817,58144.0,58143.0,1.572526]
[1725169333196,0.00817,58144.0,58143.0,1.582526]
[1725169333880,0.00817,58144.0,58143.0,1.607526]
[1725169335699,0.00817,58144.0,58143.0,1.605526]
[1725169336410,0.00817,58144.0,58136.0,0.39527668]
[1725169336645,0.00817,58144.0,58133.0,0.19992913]
[1725169336646,0.2537,58139.0,58133.0,0.19992913]
[1725169336876,0.1916,58135.0,58129.0,0.17203]
[1725169337135,0.1916,58135.0,58130.0,0.172027]
[1725169337372,0.1916,58135.0,58128.0,0.344066]
[1725169337373,0.172018,58134.0,58128.0,0.172031]
[1725169337598,0.172018,58134.0,58127.0,0.19992913]
[1725169337599,0.09181223,58135.0,58127.0,0.19992913]
[1725169337840,0.09181223,58135.0,58132.0,0.19992913]
[1725169338304,0.172019,58133.0,58127.0,0.37196513]
[1725169338534,0.09181223,58135.0,58130.0,0.172026]
[1725169338767,0.09181223,58135.0,58131.0,0.172025]
[1725169338986,0.09181223,58135.0,58127.0,0.19992913]
[1725169339211,0.26382623,58135.0,58129.0,0.172028]
[1725169339464,0.172035,58128.0,58121.0,0.19992913]
[1725169339749,0.172029,58130.0,58121.0,0.19992913]
[1725169339968,0.172035,58128.0,58121.0,0.19992913]
[1725169340179,0.34404,58133.0,58123.0,0.172048]
[1725169340425,0.172035,58128.0,58121.0,0.19992913]
[1725169340664,0.344056,58130.0,58122.0,0.17205]
[1725169340895,0.25800077,58132.0,58115.0,0.1943]
[1725169340896,0.00430077,58129.0,58116.0,0.19992913]
[1725169341124,0.00430077,58129.0,58106.0,0.19992913]
[1725169341125,0.2537,58118.0,58106.0,0.19992913]
[1725169341355,0.344136,58117.0,58107.0,0.50540786]
[1725169341586,0.344136,58117.0,58106.0,0.19992913]
[1725169341587,0.17208,58113.0,58106.0,0.19992913]
[1725169341822,0.2537,58118.0,58111.0,0.19992913]
[1725169342053,0.25800176,58118.0,58111.0,0.19992913]
[1725169342303,0.1916,58119.0,58115.0,0.172072]
[1725169342545,0.1916,58119.0,58114.0,0.172073]
[1725169342761,0.5978,58123.0,58113.0,0.00344134]
[1725169342762,0.2537,58123.0,58113.0,0.00344134]
[1725169342994,0.2537,58123.0,58103.0,0.2714]
[1725169342995,0.1916,58126.0,58118.0,0.344126]
[1725169343238,0.1916,58126.0,58125.0,0.172043]
[1725169343482,0.1916,58126.0,58124.0,0.172045]
[1725169343700,0.1916,58126.0,58125.0,0.172043]
[1725169343936,0.1916,58131.0,58127.0,0.172036]
[1725169344157,0.1916,58131.0,58128.0,0.172033]
[1725169344612,0.1916,58131.0,58127.0,0.344073]
[1725169344880,0.4453,58138.0,58134.0,0.172016]
[1725169345109,0.363606,58138.0,58133.0,0.172019]
[1725169345358,0.1916,58138.0,58136.0,0.172008]
[1725169345588,0.00817,58144.0,58138.0,0.172002]
[1725169345802,0.171991,58143.0,58138.0,0.172002]
[1725169346035,0.171993,58142.0,58132.0,0.19992913]
[1725169346283,0.171993,58142.0,58136.0,0.172009]
[1725169346528,0.171993,58142.0,58137.0,0.172006]
[1725169346769,0.00817,58144.0,58138.0,0.19992913]
[1725169346999,0.00817,58144.0,58142.0,0.171991]
[1725169347225,0.00817,58144.0,58143.0,0.171989]
[1725169347479,0.00817,58144.0,58143.0,0.37191813]
[1725169348195,0.00817,58144.0,58143.0,1.05987613]
[1725169348415,0.00817,58144.0,58143.0,1.68605513]
[1725169349100,0.00817,58144.0,58143.0,1.98615513]
[1725169349592,0.00817,58144.0,58143.0,2.01115513]
[1725169350047,0.00817,58144.0,58143.0,2.06223205]
[1725169350517,0.00817,58144.0,58143.0,2.01115513]
[1725169350736,0.00817,58144.0,58143.0,2.06023205]
[1725169350965,0.00817,58144.0,58143.0,1.83716613]
[1725169351235,0.00817,58144.0,58143.0,2.01115513]
[1725169351918,0.00817,58144.0,58143.0,2.00915513]
[1725169352385,0.00817,58144.0,58143.0,2.01115513]
[1725169352833,0.00817,58144.0,58143.0,1.98815513]
[1725169353794,0.00013,58151.0,58150.0,0.001]
[1725169354011,0.809987,58176.0,58143.0,2.3276059]
[1725169354012,0.2809,58178.0,58158.0,0.72076413]
[1725169354237,0.2809,58178.0,58158.0,0.82076413]
[1725169354238,0.1976,58174.0,58158.0,0.82076413]
[1725169354466,0.1976,58174.0,58158.0,1.78574413]
[1725169354680,0.2809,58178.0,58158.0,2.13963413]
[1725169355446,0.343778,58177.0,58158.0,1.43685413]
[1725169355677,0.1976,58164.0,58158.0,1.15965413]
[1725169356326,0.1976,58164.0,58158.0,0.81576413]
[1725169356793,0.1976,58171.0,58158.0,1.15965413]
[1725169357256,0.1976,58171.0,58168.0,0.171915]
[1725169357472,0.369508,58171.0,58166.0,0.171921]
[1725169357695,0.1976,58171.0,58168.0,0.171915]
[1725169358306,0.1976,58171.0,58167.0,0.171916]
[1725169359027,0.171914,58169.0,58165.0,0.19992913]
[1725169359763,0.171917,58168.0,58165.0,0.19992913]
[1725169360001,0.541418,58171.0,58165.0,0.19992913]
[1725169360002,0.1976,58171.0,58165.0,0.19992913]
[1725169360217,0.1976,58171.0,58166.0,0.00343803]
[1725169360439,0.369493,58176.0,58171.0,0.171905]
[1725169360888,0.171895,58175.0,58169.0,0.17191]
[1725169361103,0.171895,58175.0,58170.0,0.171908]
[1725169361317,0.17191,58170.0,58165.0,0.37185213]
[1725169361537,0.17191,58170.0,58165.0,0.37185313]
[1725169361758,0.343802,58173.0,58166.0,0.17192]
[1725169361974,0.171914,58169.0,58165.0,0.19992913]
[1725169362221,0.343809,58172.0,58165.0,0.37185213]
[1725169362445,0.171911,58170.0,58165.0,0.37185213]
[1725169363147,0.343798,58174.0,58166.0,0.343839]
[1725169363364,0.171906,58172.0,58167.0,0.171918]
[1725169363598,0.1976,58176.0,58170.0,0.19992913]
[1725169363832,0.171899,58174.0,58170.0,0.19992913]
[1725169364049,0.171899,58174.0,58168.0,0.1]
[1725169364050,0.343802,58173.0,58166.0,0.171919]
[1725169364285,0.1976,58176.0,58165.0,0.37185313]
[1725169364505,0.20189744,58176.0,58165.0,0.19992913]
[1725169364718,0.171914,58169.0,58165.0,0.19992913]
[1725169364931,0.171917,58168.0,58165.0,0.19992913]
[1725169365403,0.171921,58166.0,58165.0,0.05105684]
[1725169365632,0.343801,58174.0,58163.0,0.07658768]
[1725169365633,0.343832,58168.0,58163.0,0.05105684]
[1725169365858,0.171922,58166.0,58163.0,0.05105684]
[1725169366098,0.343801,58174.0,58160.0,0.19992913]
[1725169366099,0.343819,58171.0,58162.0,0.05105684]
[1725169366316,0.343801,58174.0,58167.0,0.171917]
[1725169366579,0.171904,58172.0,58167.0,0.171917]
[1725169366798,0.1976,58176.0,58164.0,0.05105684]
[1725169366799,0.343828,58169.0,58164.0,0.05105684]
[1725169367019,0.171911,58170.0,58164.0,0.05105684]
[1725169367251,0.343803,58173.0,58165.0,0.19992913]
[1725169367465,0.171907,58171.0,58166.0,0.17192]
[1725169368351,0.171908,58171.0,58167.0,0.171918]
[1725169368578,0.171908,58171.0,58165.0,0.25118441]
[1725169368579,0.171908,58171.0,58166.0,0.22317628]
[1725169369027,0.171908,58171.0,58167.0,0.22317328]
[1725169369242,0.1976,58176.0,58167.0,0.05469334]
[1725169369243,0.171897,58175.0,58167.0,0.05469334]
[1725169369504,0.171899,58174.0,58170.0,0.171909]
[1725169369717,0.171903,58173.0,58168.0,0.22317028]
[1725169369925,0.171903,58173.0,58169.0,0.171911]
[1725169370473,0.1976,58176.0,58170.0,0.171909]
[1725169370691,0.1976,58176.0,58171.0,0.171906]
[1725169370692,0.369493,58176.0,58171.0,0.171906]
[1725169370911,0.171902,58173.0,58169.0,0.171911]
[1725169371385,0.171904,58172.0,58166.0,0.343841]
[1725169371601,0.171904,58172.0,58168.0,0.171914]
[1725169372002,0.172717,58173.0,58168.0,0.171914]
[1725169372248,0.171905,58172.0,58168.0,0.171914]
[1725169372457,0.172717,58173.0,58168.0,0.171914]
[1725169373309,0.171905,58172.0,58168.0,0.171914]
[1725169373711,0.171911,58170.0,58165.0,0.37185213]
[1725169374153,0.171914,58169.0,58164.0,0.171927]
[1725169374366,0.00429782,58170.0,58159.0,0.1728386]
[1725169374582,0.171931,58163.0,58159.0,0.1728386]
[1725169375236,0.000816,58173.0,58159.0,0.0008976]
[1725169375475,0.17193,58163.0,58159.0,0.0008976]
[1725169375691,0.343853,58165.0,58159.0,0.0008976]
[1725169375692,0.171934,58162.0,58159.0,0.0008976]
[1725169376552,0.171929,58164.0,58157.0,0.343894]
[1725169376796,0.171925,58165.0,58160.0,0.37186813]
[1725169378148,0.17192,58167.0,58161.0,0.171935]
[1725169378399,0.17192,58167.0,58156.0,0.2772]
[1725169378400,0.343852,58165.0,58156.0,0.2772]
[1725169378619,0.343854,58165.0,58155.0,0.1]
[1725169378849,0.343854,58165.0,58156.0,0.171949]
[1725169379070,0.171934,58162.0,58156.0,0.171949]
[1725169379302,0.171934,58162.0,58155.0,0.1]
[1725169379540,0.171929,58164.0,58159.0,0.17194]
[1725169379753,0.2778,58168.0,58160.0,0.171938]
[1725169379754,0.171922,58166.0,58160.0,0.171938]
[1725169379966,0.171922,58166.0,58156.0,0.3439]
[1725169380198,0.171922,58166.0,58160.0,0.171937]
[1725169380436,0.621597,58174.0,58165.0,0.171923]
[1725169380691,0.171915,58168.0,58160.0,0.00343843]
[1725169380937,0.171915,58168.0,58165.0,0.4621]
[1725169381175,0.0004,58179.0,58172.0,0.171904]
[1725169381400,0.0004,58179.0,58172.0,0.85952]
[1725169383266,0.0004,58179.0,58172.0,1.484728]
[1725169383492,0.0004,58179.0,58172.0,1.489728]
[1725169384148,0.0004,58179.0,58172.0,1.770428]
[1725169386579,0.0004,58179.0,58172.0,1.077812]
[1725169386580,0.172283,58179.0,58172.0,1.077812]
[1725169386815,0.0004,58179.0,58172.0,1.082812]
[1725169387042,0.0004,58179.0,58172.0,1.42662]
[1725169387273,0.0004,58179.0,58172.0,1.770428]
[1725169387977,0.0004,58179.0,58172.0,1.793428]
[1725169388228,0.0004,58179.0,58172.0,1.795428]
[1725169388446,0.0004,58179.0,58178.0,2.41343226]
[1725169388686,0.0004,58179.0,58178.0,2.33450313]
[1725169388909,0.0004,58179.0,58178.0,2.33650313]
[1725169389348,0.00817,58189.0,58188.0,0.005]
[1725169389554,0.00817,58189.0,58188.0,1.85752413]
[1725169389817,0.00817,58189.0,58188.0,1.95752413]
[1725169390703,0.00817,58189.0,58188.0,1.99052413]
[1725169390923,0.00817,58189.0,58188.0,0.19992913]
[1725169391151,0.00817,58189.0,58183.0,0.19992913]
[1725169391353,0.00817,58189.0,58184.0,0.05142691]
[1725169391354,0.180025,58189.0,58184.0,0.05142691]
[1725169391568,0.180025,58189.0,58183.0,0.19992913]
[1725169391569,0.171857,58188.0,58183.0,0.25135604]
[1725169391777,0.171859,58187.0,58183.0,0.25135604]
[1725169392023,0.343715,58188.0,58183.0,0.25135604]
[1725169392254,0.171871,58183.0,58181.0,0.05142691]
[1725169392488,0.171871,58184.0,58180.0,0.05142691]
[1725169392731,0.171871,58184.0,58183.0,0.05142691]
[1725169392948,0.624919,58187.0,58183.0,0.05142691]
[1725169393170,0.00817,58189.0,58184.0,0.05142691]
[1725169393394,0.00817,58189.0,58180.0,0.10285382]
[1725169393395,0.00817,58189.0,58185.0,0.05142691]
[1725169393659,0.171858,58188.0,58185.0,0.05142691]
[1725169394059,0.00817,58189.0,58185.0,0.05142691]
[1725169394060,0.171859,58187.0,58185.0,0.05142691]
[1725169394556,0.00817,58189.0,58182.0,0.171873]
[1725169394557,0.180024,58189.0,58186.0,0.07714037]
[1725169394769,0.00817,58189.0,58188.0,0.05149408]
[1725169395237,0.180023,58189.0,58188.0,0.05149408]
[1725169395467,0.180023,58189.0,58186.0,0.05149408]
[1725169395468,0.171859,58187.0,58186.0,0.05149408]
[1725169395708,0.171859,58187.0,58182.0,0.10285382]
[1725169395709,0.171859,58187.0,58185.0,0.07714037]
[1725169395914,0.00817,58189.0,58185.0,0.07714037]
[1725169396200,0.00817,58189.0,58186.0,0.05147753]
[1725169396864,0.171859,58187.0,58186.0,0.05147753]
[1725169397085,0.171857,58188.0,58186.0,0.05147753]
[1725169397560,0.171864,58186.0,58185.0,0.07714037]
[1725169397805,0.171865,58185.0,58184.0,0.07714037]
[1725169398484,0.171858,58188.0,58183.0,0.24901037]
[1725169398712,0.00817,58189.0,58183.0,0.24901037]
[1725169398713,0.17186,58187.0,58186.0,0.05146267]
[1725169398949,0.17186,58187.0,58185.0,0.07714037]
[1725169399190,0.171862,58186.0,58184.0,0.07714037]
[1725169399442,0.515596,58185.0,58184.0,0.07714037]
[1725169400361,0.171865,58185.0,58184.0,0.07714037]
[1725169400578,0.171865,58185.0,58183.0,0.07714037]
[1725169400798,0.344536,58187.0,58183.0,0.07714037]
[1725169400799,0.171868,58184.0,58183.0,0.07714037]
[1725169401024,0.172677,58187.0,58183.0,0.10285382]
[1725169401320,0.000816,58187.0,58185.0,0.07719126]
[1725169401541,0.000816,58187.0,58185.0,0.22331571]
[1725169401757,0.000816,58187.0,58185.0,0.24905626]
[1725169402427,0.000816,58187.0,58186.0,0.171862]
[1725169402867,0.000816,58187.0,58186.0,0.515587]
[1725169403084,0.000816,58187.0,58186.0,0.56703141]
[1725169403305,0.000816,58187.0,58186.0,0.859312]
[1725169403518,0.000816,58187.0,58186.0,1.123812]
[1725169404136,0.000816,58187.0,58186.0,1.17524837]
[1725169404822,0.000816,58187.0,58186.0,1.1752359]
[1725169405114,0.000816,58187.0,58185.0,0.0514239]
[1725169405324,0.172677,58187.0,58180.0,0.0514239]
[1725169405587,0.000816,58187.0,58184.0,0.171867]
[1725169406013,0.000816,58187.0,58185.0,0.171865]
[1725169406224,0.000816,58187.0,58183.0,0.171869]
[1725169406434,0.000816,58187.0,58185.0,0.171862]
[1725169406652,0.000816,58187.0,58182.0,0.00343712]
[1725169406653,0.000816,58187.0,58186.0,0.171862]
[1725169407085,0.171868,58185.0,58180.0,0.0514239]
[1725169407277,0.171868,58185.0,58180.0,0.171878]
[1725169407757,0.171868,58185.0,58179.0,0.1514239]
[1725169407971,0.171868,58185.0,58180.0,0.171879]
[1725169408384,0.171868,58185.0,58180.0,0.2233029]
[1725169409143,0.343726,58186.0,58180.0,0.171879]
[1725169409144,0.171869,58184.0,58180.0,0.171879]
[1725169409355,0.171819,58184.0,58180.0,0.2233029]
[1725169409788,0.171866,58185.0,58181.0,0.171877]
[1725169410003,0.000816,58187.0,58181.0,0.21434887]
[1725169410234,0.000816,58187.0,58186.0,0.515587]
[1725169410683,0.000816,58187.0,58186.0,1.127512]
[1725169411158,1.308113,58187.0,58186.0,0.07719126]
[1725169411442,0.343743,58183.0,58181.0,0.05147131]
[1725169411641,0.792535,58187.0,58169.0,0.15428074]
[1725169411642,0.448,58179.0,58172.0,0.06257131]
[1725169411861,0.515703,58173.0,58172.0,0.0111]
[1725169415819,0.859505,58173.0,58172.0,0.0111]
[1725169416697,0.2707145,58173.0,58172.0,0.0111]
[1725169416972,0.4426155,58173.0,58172.0,0.0111]
[1725169419640,0.171901,58173.0,58172.0,0.0111]
[1725169422096,0.343791,58175.0,58172.0,0.0111]
[1725169422944,0.343773,58178.0,58172.0,0.0111]
[1725169423155,0.791771,58179.0,58172.0,0.0111]
[1725169423374,0.343779,58177.0,58172.0,0.0111]
[1725169423586,0.171896,58175.0,58172.0,0.0111]
[1725169423809,0.343779,58177.0,58172.0,0.0111]
[1725169423810,0.171899,58174.0,58172.0,0.0111]
[1725169424038,0.1882,58179.0,58172.0,0.0111]
[1725169424251,0.343752,58182.0,58173.0,0.00343766]
[1725169424548,0.171878,58181.0,58175.0,0.171893]
[1725169424765,0.343752,58182.0,58172.0,0.0111]
[1725169424766,0.171881,58180.0,58174.0,0.171896]
[1725169425616,0.171881,58180.0,58175.0,0.171895]
[1725169426975,0.194618,58184.0,58172.0,0.0119998]
[1725169426976,0.00429698,58179.0,58172.0,0.0119998]
[1725169427222,0.194618,58184.0,58172.0,0.0119998]
[1725169427223,0.00429736,58183.0,58172.0,0.0119998]
[1725169427471,0.4605,58176.0,58172.0,0.0119998]
[1725169427688,0.515703,58173.0,58172.0,0.0119998]
[1725169427922,0.859505,58173.0,58172.0,0.0119998]
[1725169428193,1.203307,58173.0,58172.0,0.0119998]
[1725169428426,0.859505,58173.0,58172.0,0.0119998]
[1725169428880,0.4605,58176.0,58172.0,0.0119998]
[1725169428881,0.1935,58176.0,58172.0,0.0119998]
[1725169429108,0.1935,58180.0,58172.0,0.0119998]
[1725169429350,0.171894,58176.0,58172.0,0.0119998]
[1725169429569,0.171897,58175.0,58172.0,0.0119998]
[1725169429998,0.343775,58178.0,58172.0,0.0119998]